[Event "MČR juniorů a juniorek v rapid šachu 2024"]
[Site "Hotel Fit Fun, Harrachov, Czech Republic"]
[Date "2024.09.21"]
[Round "2.6"]
[White "Hosova Sandra"]
[Black "Juhanak Daniel"]
[Result "1-0"]
[TimeControl "20+5"]
[WhiteFideId "397717"]
[BlackFideId "23718765"]
[WhiteElo "1847"]
[BlackElo "1982"]

1. d4 {[%clk 00:20:07]} {[%emt 00:00:02]} d5 {[%clk 00:20:07]} {[%emt
00:00:03]} 2. Nf3 {[%clk 00:20:10]} {[%emt 00:00:02]} Nf6 {[%clk 00:20:09]}
{[%emt 00:00:04]} 3. e3 {[%clk 00:20:12]} {[%emt 00:00:03]} c5 {[%clk
00:19:49]} {[%emt 00:00:24]} 4. b3 {[%clk 00:20:11]} {[%emt 00:00:08]} cxd4
{[%clk 00:19:50]} {[%emt 00:00:03]} 5. Nxd4 {[%clk 00:19:21]} {[%emt 00:00:55]}
e5 {[%clk 00:19:33]} {[%emt 00:00:22]} 6. Ne2 {[%clk 00:18:41]} {[%emt
00:00:45]} Nc6 {[%clk 00:19:13]} {[%emt 00:00:25]} 7. a3 {[%clk 00:18:00]}
{[%emt 00:00:46]} Bf5 {[%clk 00:18:04]} {[%emt 00:01:14]} 8. Bb2 {[%clk
00:17:51]} {[%emt 00:00:14]} Bd6 {[%clk 00:17:21]} {[%emt 00:00:48]} 9. Ng3
{[%clk 00:17:28]} {[%emt 00:00:28]} Qd7 {[%clk 00:15:36]} {[%emt 00:01:51]} 10.
Nc3 {[%clk 00:16:47]} {[%emt 00:00:45]} O-O {[%clk 00:13:54]} {[%emt 00:01:47]}
11. Be2 {[%clk 00:15:08]} {[%emt 00:01:45]} Bg6 {[%clk 00:10:25]} {[%emt
00:03:33]} 12. Nb5 {[%clk 00:12:03]} {[%emt 00:03:10]} Be7 {[%clk 00:08:27]}
{[%emt 00:02:03]} 13. Rc1 {[%clk 00:10:05]} {[%emt 00:02:03]} a6 {[%clk
00:08:00]} {[%emt 00:00:32]} 14. Nc3 {[%clk 00:10:09]} {[%emt 00:00:02]} Rfd8
{[%clk 00:07:29]} {[%emt 00:00:35]} 15. Na4 {[%clk 00:09:56]} {[%emt 00:00:18]}
Qc7 {[%clk 00:06:59]} {[%emt 00:00:35]} 16. O-O {[%clk 00:09:51]} {[%emt
00:00:10]} b5 {[%clk 00:06:17]} {[%emt 00:00:48]} 17. Nc3 {[%clk 00:09:50]}
{[%emt 00:00:06]} Rac8 {[%clk 00:04:55]} {[%emt 00:01:27]} 18. Bg4 {[%clk
00:08:40]} {[%emt 00:01:15]} d4 {[%clk 00:04:17]} {[%emt 00:00:43]} 19. exd4
{[%clk 00:07:55]} {[%emt 00:00:50]} Rxd4 {[%clk 00:04:10]} {[%emt 00:00:12]} 20.
Nxb5 {[%clk 00:07:16]} {[%emt 00:00:45]} Rxd1 {[%clk 00:03:28]} {[%emt
00:00:46]} 21. Nxc7 {[%clk 00:07:19]} {[%emt 00:00:02]} Rxf1+ {[%clk 00:03:32]}
{[%emt 00:00:02]} 22. Kxf1 {[%clk 00:07:15]} {[%emt 00:00:09]} Rxc7 {[%clk
00:03:03]} {[%emt 00:00:33]} 23. Be2 {[%clk 00:06:23]} {[%emt 00:00:57]} a5
{[%clk 00:02:46]} {[%emt 00:00:23]} 24. c3 {[%clk 00:05:26]} {[%emt 00:01:01]}
h5 {[%clk 00:01:46]} {[%emt 00:01:05]} 25. Ke1 {[%clk 00:04:28]} {[%emt
00:01:03]} h4 {[%clk 00:01:40]} {[%emt 00:00:11]} 26. Nf1 {[%clk 00:04:32]} Nd5
{[%clk 00:01:14]} {[%emt 00:00:31]} 27. g3 {[%clk 00:03:52]} {[%emt 00:00:45]}
hxg3 {[%clk 00:01:15]} {[%emt 00:00:04]} 28. hxg3 {[%clk 00:03:56]} {[%emt
00:00:01]} e4 {[%clk 00:00:25]} {[%emt 00:00:55]} 29. b4 {[%clk 00:02:22]}
{[%emt 00:01:39]} Bf6 {[%clk 00:00:15]} {[%emt 00:00:16]} 30. Ba1 {[%clk
00:01:57]} {[%emt 00:00:30]} axb4 {[%clk 00:00:16]} {[%emt 00:00:04]} 31. cxb4
{[%clk 00:01:50]} {[%emt 00:00:12]} Bxa1 {[%clk 00:00:16]} {[%emt 00:00:05]} 32.
Rxa1 {[%clk 00:01:54]} Nd4 {[%clk 00:00:20]} 33. Bd1 {[%clk 00:01:18]} {[%emt
00:00:41]} Nc3 {[%clk 00:00:18]} {[%emt 00:00:08]} 34. Ne3 {[%clk 00:01:11]}
{[%emt 00:00:12]} Nxd1 {[%clk 00:00:20]} {[%emt 00:00:02]} 35. Rxd1 {[%clk
00:01:06]} {[%emt 00:00:10]} Nc2+ {[%clk 00:00:19]} {[%emt 00:00:07]} 36. Nxc2
{[%clk 00:00:53]} {[%emt 00:00:18]} Rxc2 {[%clk 00:00:23]} 37. Rb1 {[%clk
00:00:35]} {[%emt 00:00:22]} Ra2 {[%clk 00:00:16]} {[%emt 00:00:11]} 38. Rb3
{[%clk 00:00:20]} {[%emt 00:00:21]} Ra1+ {[%clk 00:00:16]} {[%emt 00:00:05]} 39.
Kd2 {[%clk 00:00:20]} {[%emt 00:00:05]} Bh5 {[%clk 00:00:16]} {[%emt 00:00:05]}
40. b5 {[%clk 00:00:14]} {[%emt 00:00:11]} Rd1+ {[%clk 00:00:17]} {[%emt
00:00:04]} 41. Ke3 {[%clk 00:00:16]} {[%emt 00:00:03]} Re1+ {[%clk 00:00:16]}
{[%emt 00:00:06]} 42. Kd4 {[%clk 00:00:20]} {[%emt 00:00:02]} Rd1+ {[%clk
00:00:14]} {[%emt 00:00:08]} 43. Kxe4 {[%clk 00:00:22]} {[%emt 00:00:02]} Bg6+
{[%clk 00:00:16]} {[%emt 00:00:03]} 44. Ke3 {[%clk 00:00:25]} {[%emt 00:00:02]}
Bc2 {[%clk 00:00:16]} {[%emt 00:00:05]} 45. Rb2 {[%clk 00:00:22]} {[%emt
00:00:08]} Ba4 {[%clk 00:00:14]} {[%emt 00:00:07]} 46. b6 {[%clk 00:00:25]}
{[%emt 00:00:02]} Bc6 {[%clk 00:00:13]} {[%emt 00:00:07]} 47. b7 {[%clk
00:00:22]} {[%emt 00:00:07]} Bxb7 {[%clk 00:00:15]} {[%emt 00:00:04]} 48. Rxb7
{[%clk 00:00:23]} {[%emt 00:00:04]} Ra1 {[%clk 00:00:18]} {[%emt 00:00:02]} 49.
Ra7 {[%clk 00:00:26]} {[%emt 00:00:02]} f6 {[%clk 00:00:21]} {[%emt 00:00:03]}
50. a4 {[%clk 00:00:24]} {[%emt 00:00:07]} Kh7 {[%clk 00:00:24]} {[%emt
00:00:02]} 51. a5 {[%clk 00:00:23]} {[%emt 00:00:06]} Kg6 {[%clk 00:00:28]}
{[%emt 00:00:01]} 52. a6 {[%clk 00:00:13]} {[%emt 00:00:15]} Kf5 {[%clk
00:00:32]} 53. g4+ {[%clk 00:00:14]} {[%emt 00:00:05]} Ke6 {[%clk 00:00:21]}
{[%emt 00:00:16]} 54. Kf4 {[%clk 00:00:16]} {[%emt 00:00:03]} Ra3 {[%clk
00:00:17]} {[%emt 00:00:08]} 55. Ra8 {[%clk 00:00:16]} {[%emt 00:00:06]} g5+
{[%clk 00:00:14]} {[%emt 00:00:08]} 56. Ke4 {[%clk 00:00:20]} {[%emt 00:00:01]}
Ra4+ {[%clk 00:00:18]} 57. Kf3 {[%clk 00:00:20]} {[%emt 00:00:04]} Rf4+ {[%clk
00:00:21]} {[%emt 00:00:02]} 58. Ke3 {[%clk 00:00:19]} {[%emt 00:00:06]} Rxg4
{[%clk 00:00:08]} {[%emt 00:00:19]} 59. a7 {[%clk 00:00:22]} {[%emt 00:00:01]}
Kf5 {[%clk 00:00:10]} {[%emt 00:00:04]} 60. Rd8 {[%clk 00:00:20]} {[%emt
00:00:07]} Re4+ {[%clk 00:00:13]} {[%emt 00:00:01]} 61. Kd3 {[%clk 00:00:23]}
{[%emt 00:00:02]} Ra4 {[%clk 00:00:17]} {[%emt 00:00:02]} 62. a8=Q {[%clk
00:00:24]} {[%emt 00:00:03]} Rxa8 {[%clk 00:00:20]} {[%emt 00:00:02]} 63. Rxa8
{[%emt 00:00:01]} Kf4 64. Rf8 {[%clk 00:00:19]} {[%emt 00:00:14]} f5 {[%clk
00:00:29]} {[%emt 00:00:01]} 65. Ke2 {[%clk 00:00:18]} {[%emt 00:00:06]} Ke4
{[%clk 00:00:33]} {[%emt 00:00:01]} 66. f3+ {[%clk 00:00:17]} {[%emt 00:00:06]}
Kf4 {[%clk 00:00:37]} 67. Kf2 {[%clk 00:00:20]} {[%emt 00:00:02]} g4 {[%clk
00:00:40]} {[%emt 00:00:02]} 68. fxg4 {[%clk 00:00:19]} {[%emt 00:00:07]} Kxg4
{[%clk 00:00:45]} 69. Ke3 {[%clk 00:00:12]} {[%emt 00:00:12]} Kg5 {[%clk
00:00:49]} 70. Rg8+ {[%clk 00:00:10]} {[%emt 00:00:07]} Kf6 {[%clk 00:00:51]}
{[%emt 00:00:03]} 71. Kf4 {[%clk 00:00:14]} Kf7 {[%clk 00:00:54]} {[%emt
00:00:02]} 72. Rg5 {[%clk 00:00:18]} Ke6 {[%clk 00:00:58]} 73. Rxf5 {[%clk
00:00:22]} {[%emt 00:00:01]} Kd6 {[%clk 00:01:03]} 74. Ke4 {[%clk 00:00:26]}
{[%emt 00:00:01]} Kc6 {[%clk 00:01:07]} 75. Kd4 {[%clk 00:00:31]} Kb6 {[%clk
00:01:11]} {[%emt 00:00:02]} 76. Kc4 {[%clk 00:00:35]} Ka6 {[%clk 00:01:16]} 77.
Kb4 {[%clk 00:00:40]} {[%emt 00:00:01]} Kb6 78. Rf6+ Kc7 {[%clk 00:01:25]} 79.
Kb5 {[%clk 00:00:48]} Kd7 {[%clk 00:01:29]} 80. Kc5 {[%clk 00:00:53]} Ke7
{[%clk 00:01:33]} {[%emt 00:00:02]} 81. Ra6 {[%clk 00:00:57]} Kf7 {[%clk
00:01:38]} 82. Kd5 {[%clk 00:01:02]} Ke7 {[%clk 00:01:42]} 83. Rb6 {[%clk
00:01:05]} {[%emt 00:00:02]} Kf7 {[%clk 00:01:46]} {[%emt 00:00:01]} 84. Ke5
Kg7 85. Kf5 {[%clk 00:01:14]} Kh7 {[%clk 00:01:55]} 86. Kg5 {[%clk 00:01:18]}
Kg7 {[%clk 00:01:59]} 87. Rb7+ {[%clk 00:01:23]} Kf8 {[%clk 00:02:04]} 88. Kg6
{[%clk 00:01:27]} {[%emt 00:00:02]} Ke8 {[%clk 00:02:08]} 89. Kf6 {[%clk
00:01:31]} {[%emt 00:00:01]} Kd8 {[%clk 00:02:12]} 90. Rh7 {[%clk 00:01:35]}
Kc8 {[%clk 00:02:17]} 91. Ke6 {[%clk 00:01:40]} Kb8 {[%clk 00:02:21]} 92. Kd6
{[%clk 00:01:44]} Ka8 {[%clk 00:02:25]} 93. Kc6 {[%clk 00:01:48]} {[%emt
00:00:03]} Kb8 {[%clk 00:02:30]} 94. Rg7 {[%clk 00:01:52]} {[%emt 00:00:02]}
Ka8 {[%clk 00:02:34]} 95. Kb6 {[%clk 00:01:56]} 1-0



[ePGN "0.1;DGT LiveChess/2.2.6"]

[Event "MČR juniorů a juniorek v rapid šachu 2024"]
[Site "Hotel Fit Fun, Harrachov, Czech Republic"]
[Date "2024.09.21"]
[Round "2.7"]
[White "Lihotsky Lukas"]
[Black "Urbansky Stepan"]
[Result "1-0"]
[TimeControl "20+5"]
[WhiteFideId "23727004"]
[BlackFideId "23761741"]
[WhiteElo "1975"]
[BlackElo "1837"]

1. d4 {[%clk 00:20:08]} {[%emt 00:00:01]} Nf6 {[%clk 00:20:08]} {[%emt
00:00:02]} 2. c4 {[%clk 00:20:12]} {[%emt 00:00:02]} e6 {[%clk 00:20:11]}
{[%emt 00:00:02]} 3. Nf3 {[%clk 00:20:12]} {[%emt 00:00:05]} d5 {[%clk
00:20:14]} {[%emt 00:00:02]} 4. Nc3 {[%clk 00:20:16]} c5 {[%clk 00:20:17]}
{[%emt 00:00:02]} 5. cxd5 {[%clk 00:20:15]} {[%emt 00:00:07]} Nxd5 {[%clk
00:20:20]} {[%emt 00:00:02]} 6. e4 {[%clk 00:19:50]} {[%emt 00:00:30]} Nxc3 7.
bxc3 {[%clk 00:19:53]} cxd4 {[%clk 00:20:26]} {[%emt 00:00:02]} 8. cxd4 {[%clk
00:19:57]} Bb4+ {[%clk 00:20:29]} {[%emt 00:00:01]} 9. Bd2 {[%clk 00:20:01]}
{[%emt 00:00:02]} Bxd2+ {[%clk 00:20:31]} {[%emt 00:00:02]} 10. Qxd2 {[%clk
00:20:05]} {[%emt 00:00:02]} O-O {[%clk 00:20:19]} {[%emt 00:00:16]} 11. Bc4
{[%clk 00:20:08]} {[%emt 00:00:02]} Nd7 {[%clk 00:17:43]} {[%emt 00:02:41]} 12.
O-O {[%clk 00:20:10]} {[%emt 00:00:04]} b6 {[%clk 00:17:26]} {[%emt 00:00:22]}
13. a4 {[%clk 00:19:58]} {[%emt 00:00:17]} Bb7 {[%clk 00:17:19]} {[%emt
00:00:11]} 14. Bd3 {[%clk 00:20:01]} {[%emt 00:00:02]} Nf6 {[%clk 00:17:02]}
{[%emt 00:00:22]} 15. Rfe1 {[%clk 00:20:00]} {[%emt 00:00:07]} Qc7 {[%clk
00:16:01]} {[%emt 00:01:06]} 16. Rac1 {[%clk 00:17:49]} {[%emt 00:02:16]} Qd7
{[%clk 00:15:31]} {[%emt 00:00:34]} 17. Qb4 {[%clk 00:17:44]} {[%emt 00:00:10]}
Rfd8 {[%clk 00:14:45]} {[%emt 00:00:51]} 18. Bb5 {[%clk 00:16:53]} {[%emt
00:00:56]} 1-0



[ePGN "0.1;DGT LiveChess/2.2.6"]

[Event "MČR juniorů a juniorek v rapid šachu 2024"]
[Site "Hotel Fit Fun, Harrachov, Czech Republic"]
[Date "2024.09.21"]
[Round "2.8"]
[White "Rousek Jan"]
[Black "Dobsa Emma"]
[Result "1-0"]
[TimeControl "20+5"]
[WhiteFideId "386669"]
[BlackFideId "23709391"]
[WhiteElo "1958"]
[BlackElo "1830"]

1. d4 {[%clk 00:20:07]} {[%emt 00:00:02]} d5 {[%clk 00:20:09]} {[%emt
00:00:02]} 2. Nf3 {[%clk 00:20:10]} {[%emt 00:00:02]} Nf6 {[%clk 00:20:13]}
{[%emt 00:00:01]} 3. g3 {[%clk 00:20:12]} {[%emt 00:00:02]} c6 {[%clk
00:20:17]} {[%emt 00:00:02]} 4. Bg2 {[%clk 00:20:11]} {[%emt 00:00:05]} Bf5
{[%clk 00:20:21]} {[%emt 00:00:02]} 5. O-O {[%clk 00:20:08]} {[%emt 00:00:08]}
h6 {[%clk 00:20:14]} {[%emt 00:00:13]} 6. c4 {[%clk 00:20:09]} {[%emt
00:00:04]} e6 {[%clk 00:20:17]} {[%emt 00:00:02]} 7. Nc3 {[%clk 00:20:09]}
{[%emt 00:00:03]} Nbd7 {[%clk 00:19:34]} {[%emt 00:00:49]} 8. Qb3 {[%clk
00:19:52]} {[%emt 00:00:22]} Qb6 {[%clk 00:18:45]} {[%emt 00:00:55]} 9. c5
{[%clk 00:19:54]} {[%emt 00:00:02]} Qxb3 {[%clk 00:18:48]} {[%emt 00:00:02]} 10.
axb3 {[%clk 00:19:57]} a6 {[%clk 00:17:57]} {[%emt 00:00:57]} 11. b4 {[%clk
00:19:57]} {[%emt 00:00:05]} Rc8 {[%clk 00:17:51]} {[%emt 00:00:11]} 12. Nd2
{[%clk 00:16:35]} {[%emt 00:03:27]} Bc2 {[%clk 00:15:15]} {[%emt 00:02:41]} 13.
e4 {[%clk 00:15:29]} {[%emt 00:01:11]} Be7 {[%clk 00:13:36]} {[%emt 00:01:43]}
14. exd5 {[%clk 00:14:37]} {[%emt 00:00:58]} cxd5 {[%clk 00:13:35]} {[%emt
00:00:07]} 15. b5 {[%clk 00:14:17]} {[%emt 00:00:24]} axb5 {[%clk 00:13:38]}
{[%emt 00:00:02]} 16. Re1 {[%clk 00:13:27]} {[%emt 00:00:55]} b4 {[%clk
00:13:10]} {[%emt 00:00:33]} 17. Nb5 {[%clk 00:11:55]} {[%emt 00:01:37]} O-O
{[%clk 00:12:27]} {[%emt 00:00:49]} 18. Ra7 {[%clk 00:11:46]} {[%emt 00:00:12]}
Bd3 {[%clk 00:07:49]} {[%emt 00:04:44]} 19. Bf1 {[%clk 00:11:37]} {[%emt
00:00:14]} Bxb5 {[%clk 00:06:56]} {[%emt 00:00:58]} 20. Bxb5 {[%clk 00:11:38]}
{[%emt 00:00:04]} Rb8 {[%clk 00:07:00]} 21. Nb3 {[%clk 00:10:30]} {[%emt
00:01:12]} g5 {[%clk 00:07:02]} {[%emt 00:00:03]} 22. h4 {[%clk 00:09:19]}
{[%emt 00:01:16]} gxh4 {[%clk 00:06:19]} {[%emt 00:00:49]} 23. Bxh6 {[%clk
00:09:21]} {[%emt 00:00:02]} hxg3 {[%clk 00:05:39]} {[%emt 00:00:46]} 24. Bxf8
{[%clk 00:08:00]} {[%emt 00:01:26]} gxf2+ {[%clk 00:05:43]} {[%emt 00:00:01]}
25. Kxf2 {[%clk 00:08:03]} {[%emt 00:00:02]} Nxf8 {[%clk 00:05:28]} {[%emt
00:00:20]} 26. Rg1+ {[%clk 00:07:17]} {[%emt 00:00:50]} Ng6 {[%clk 00:05:28]}
{[%emt 00:00:06]} 27. Bd3 {[%clk 00:07:20]} {[%emt 00:00:02]} Kg7 {[%clk
00:03:46]} {[%emt 00:01:47]} 28. c6 {[%clk 00:06:59]} {[%emt 00:00:26]} Bd6
{[%clk 00:03:25]} {[%emt 00:00:26]} 29. Rxb7 {[%clk 00:06:36]} {[%emt
00:00:28]} Rxb7 {[%clk 00:03:29]} {[%emt 00:00:02]} 30. cxb7 {[%clk 00:06:40]}
Nd7 {[%clk 00:03:23]} {[%emt 00:00:11]} 31. Ke2 {[%clk 00:03:18]} {[%emt
00:03:26]} Kf6 {[%clk 00:03:20]} {[%emt 00:00:07]} 32. Bxg6 {[%clk 00:03:15]}
{[%emt 00:00:08]} fxg6 {[%clk 00:03:24]} {[%emt 00:00:02]} 33. Nc5 {[%clk
00:03:17]} {[%emt 00:00:03]} Nb8 {[%clk 00:02:31]} {[%emt 00:00:58]} 34. Ra1
{[%clk 00:02:47]} {[%emt 00:00:35]} e5 {[%clk 00:02:03]} {[%emt 00:00:33]} 35.
Ra8 {[%clk 00:01:35]} {[%emt 00:01:16]} exd4 {[%clk 00:01:30]} {[%emt
00:00:39]} 36. Rxb8 {[%clk 00:01:29]} {[%emt 00:00:11]} Bxc5 {[%clk 00:00:51]}
{[%emt 00:00:44]} 37. Ra8 {[%clk 00:01:16]} {[%emt 00:00:17]} Bd6 {[%clk
00:00:43]} {[%emt 00:00:14]} 38. Ra6 {[%emt 00:00:06]} 1-0



[ePGN "0.1;DGT LiveChess/2.2.6"]

[Event "MČR juniorů a juniorek v rapid šachu 2024"]
[Site "Hotel Fit Fun, Harrachov, Czech Republic"]
[Date "2024.09.21"]
[Round "2.9"]
[White "Hozda Max"]
[Black "Nespurek Jakub"]
[Result "1-0"]
[TimeControl "20+5"]
[WhiteFideId "23725958"]
[BlackFideId "391816"]
[WhiteElo "1939"]
[BlackElo "1817"]

1. d4 {[%clk 00:20:07]} {[%emt 00:00:02]} g6 {[%clk 00:20:09]} {[%emt
00:00:01]} 2. c4 {[%clk 00:20:10]} {[%emt 00:00:03]} d6 {[%clk 00:20:12]}
{[%emt 00:00:02]} 3. Nf3 {[%clk 00:20:13]} {[%emt 00:00:01]} Bg7 {[%clk
00:20:15]} {[%emt 00:00:02]} 4. g3 {[%clk 00:20:15]} {[%emt 00:00:03]} Nd7
{[%clk 00:20:16]} {[%emt 00:00:04]} 5. Bg2 {[%clk 00:20:17]} {[%emt 00:00:03]}
c5 {[%clk 00:20:19]} {[%emt 00:00:03]} 6. O-O {[%clk 00:20:04]} {[%emt
00:00:18]} Ngf6 {[%clk 00:20:17]} {[%emt 00:00:06]} 7. Nc3 {[%clk 00:20:02]}
{[%emt 00:00:07]} O-O {[%clk 00:20:03]} {[%emt 00:00:19]} 8. d5 {[%clk
00:20:01]} {[%emt 00:00:06]} Nb6 {[%clk 00:19:25]} {[%emt 00:00:44]} 9. Nd2
{[%clk 00:18:53]} {[%emt 00:01:13]} Bd7 {[%clk 00:18:58]} {[%emt 00:00:32]} 10.
e4 {[%clk 00:18:10]} {[%emt 00:00:48]} Qc8 {[%clk 00:18:15]} {[%emt 00:00:48]}
11. a4 {[%clk 00:17:30]} {[%emt 00:00:45]} Bh3 {[%clk 00:17:00]} {[%emt
00:01:20]} 12. a5 {[%clk 00:17:09]} {[%emt 00:00:26]} Bxg2 {[%clk 00:16:31]}
{[%emt 00:00:33]} 13. Kxg2 {[%clk 00:17:11]} {[%emt 00:00:03]} Nbd7 {[%clk
00:16:30]} {[%emt 00:00:06]} 14. f4 {[%clk 00:17:00]} {[%emt 00:00:15]} b6
{[%clk 00:15:35]} {[%emt 00:01:01]} 15. Nf3 {[%clk 00:16:49]} {[%emt 00:00:16]}
a6 {[%clk 00:13:59]} {[%emt 00:01:41]} 16. Qe2 {[%clk 00:16:36]} {[%emt
00:00:19]} bxa5 {[%clk 00:10:57]} {[%emt 00:03:07]} 17. e5 {[%clk 00:15:35]}
{[%emt 00:01:06]} Ne8 {[%clk 00:06:29]} {[%emt 00:04:32]} 18. e6 {[%clk
00:15:13]} {[%emt 00:00:27]} Nb6 {[%clk 00:05:15]} {[%emt 00:01:19]} 19. exf7+
{[%clk 00:14:16]} {[%emt 00:01:02]} Rxf7 {[%clk 00:04:54]} {[%emt 00:00:26]} 20.
Ng5 {[%clk 00:13:27]} {[%emt 00:00:53]} Rf8 {[%clk 00:04:31]} {[%emt 00:00:27]}
21. Ne6 {[%clk 00:10:05]} {[%emt 00:03:28]} Rf7 {[%clk 00:04:17]} {[%emt
00:00:18]} 22. Ne4 {[%clk 00:08:22]} {[%emt 00:01:49]} h6 {[%clk 00:03:18]}
{[%emt 00:01:04]} 23. Rxa5 {[%clk 00:06:24]} {[%emt 00:02:04]} Nc7 {[%clk
00:02:24]} {[%emt 00:00:58]} 24. Nxg7 {[%clk 00:06:18]} {[%emt 00:00:11]} Kxg7
{[%clk 00:02:15]} {[%emt 00:00:15]} 25. b3 {[%clk 00:06:11]} {[%emt 00:00:11]}
Qd7 {[%clk 00:01:42]} {[%emt 00:00:39]} 26. Bb2+ {[%clk 00:06:01]} {[%emt
00:00:15]} Kh7 {[%clk 00:01:45]} {[%emt 00:00:02]} 27. Raa1 {[%clk 00:05:06]}
{[%emt 00:01:00]} Raf8 {[%clk 00:01:11]} {[%emt 00:00:39]} 28. Rae1 {[%clk
00:03:52]} {[%emt 00:01:19]} a5 {[%clk 00:00:39]} {[%emt 00:00:37]} 29. Qd3
{[%clk 00:03:24]} {[%emt 00:00:32]} Na6 {[%clk 00:00:27]} {[%emt 00:00:18]} 30.
Ra1 {[%clk 00:02:38]} {[%emt 00:00:50]} Nb4 {[%clk 00:00:30]} {[%emt 00:00:03]}
31. Qc3 {[%clk 00:02:40]} {[%emt 00:00:02]} Qf5 {[%clk 00:00:26]} {[%emt
00:00:09]} 32. Nf2 {[%clk 00:02:01]} {[%emt 00:00:45]} Qc2 {[%clk 00:00:21]}
{[%emt 00:00:09]} 33. Rxa5 {[%clk 00:01:47]} {[%emt 00:00:20]} Qxc3 {[%clk
00:00:13]} {[%emt 00:00:13]} 34. Bxc3 {[%clk 00:01:50]} {[%emt 00:00:01]} Nc2
{[%clk 00:00:15]} {[%emt 00:00:04]} 35. Nd1 {[%clk 00:01:00]} {[%emt 00:00:55]}
g5 {[%clk 00:00:16]} {[%emt 00:00:03]} 36. Ra2 {[%clk 00:00:44]} {[%emt
00:00:21]} Nb4 {[%clk 00:00:13]} {[%emt 00:00:09]} 37. Raf2 {[%clk 00:00:25]}
{[%emt 00:00:23]} Nd3 {[%clk 00:00:14]} {[%emt 00:00:04]} 38. Rf3 {[%clk
00:00:28]} {[%emt 00:00:03]} Nc1 {[%clk 00:00:16]} {[%emt 00:00:03]} 39. Bb2
{[%clk 00:00:24]} {[%emt 00:00:09]} g4 {[%clk 00:00:16]} {[%emt 00:00:05]} 40.
Re3 {[%clk 00:00:23]} {[%emt 00:00:06]} Na2 {[%clk 00:00:19]} {[%emt 00:00:02]}
41. Rfe1 {[%clk 00:00:24]} {[%emt 00:00:03]} Nc8 {[%clk 00:00:20]} {[%emt
00:00:04]} 42. Nf2 {[%clk 00:00:25]} {[%emt 00:00:04]} Nb4 {[%clk 00:00:24]}
{[%emt 00:00:02]} 43. R1e2 {[%clk 00:00:23]} {[%emt 00:00:07]} Rd8 {[%clk
00:00:20]} {[%emt 00:00:08]} 44. Nxg4 {[%clk 00:00:23]} {[%emt 00:00:06]} Rd7
{[%clk 00:00:23]} {[%emt 00:00:02]} 45. Re6 {[%clk 00:00:23]} {[%emt 00:00:05]}
h5 {[%clk 00:00:23]} {[%emt 00:00:05]} 46. Rh6+ {[%clk 00:00:25]} {[%emt
00:00:02]} Kg8 {[%clk 00:00:26]} {[%emt 00:00:01]} 47. Rh8# {[%clk 00:00:29]}
{[%emt 00:00:02]} 1-0



[ePGN "0.1;DGT LiveChess/2.2.6"]

[Event "MČR juniorů a juniorek v rapid šachu 2024"]
[Site "Hotel Fit Fun, Harrachov, Czech Republic"]
[Date "2024.09.21"]
[Round "3.1"]
[White "Bartak Josef"]
[Black "Hak David"]
[Result "0-1"]
[TimeControl "20+5"]
[WhiteFideId "23712252"]
[BlackFideId "377007"]
[WhiteElo "1902"]
[BlackElo "2103"]

1. e4 {[%clk 00:20:08]} {[%emt 00:01:45]} c5 {[%clk 00:20:09]} {[%emt
00:00:01]} 2. Nc3 {[%clk 00:20:10]} {[%emt 00:00:02]} Nc6 {[%clk 00:20:14]} 3.
g3 {[%clk 00:20:14]} {[%emt 00:00:02]} g6 {[%clk 00:20:18]} 4. Bg2 {[%clk
00:20:18]} Bg7 {[%clk 00:20:22]} 5. d3 {[%clk 00:20:22]} {[%emt 00:00:01]} d6
{[%clk 00:20:26]} 6. f4 {[%clk 00:20:24]} {[%emt 00:00:04]} e6 {[%clk
00:20:22]} {[%emt 00:00:09]} 7. Nf3 {[%clk 00:20:28]} {[%emt 00:00:02]} Nge7
{[%clk 00:20:22]} {[%emt 00:00:04]} 8. O-O {[%clk 00:20:30]} {[%emt 00:00:03]}
O-O {[%clk 00:20:24]} {[%emt 00:00:03]} 9. Be3 {[%clk 00:20:34]} {[%emt
00:00:02]} Rb8 {[%clk 00:19:52]} {[%emt 00:00:37]} 10. Rb1 {[%clk 00:20:14]}
{[%emt 00:00:24]} b5 {[%clk 00:19:46]} {[%emt 00:00:11]} 11. d4 {[%clk
00:20:09]} {[%emt 00:00:10]} d5 {[%clk 00:19:12]} {[%emt 00:00:39]} 12. exd5
{[%clk 00:18:55]} {[%emt 00:01:19]} Nf5 {[%clk 00:18:08]} {[%emt 00:01:09]} 13.
Bf2 {[%clk 00:18:52]} {[%emt 00:00:07]} Ncxd4 {[%clk 00:18:02]} {[%emt
00:00:12]} 14. Ne5 {[%clk 00:17:57]} {[%emt 00:01:00]} b4 {[%clk 00:15:20]}
{[%emt 00:02:47]} 15. Ne4 {[%clk 00:16:13]} {[%emt 00:01:49]} Bb7 {[%clk
00:08:45]} {[%emt 00:06:40]} 16. Nxc5 {[%clk 00:13:23]} {[%emt 00:02:54]} Bxd5
{[%clk 00:08:40]} {[%emt 00:00:11]} 17. Ne4 {[%clk 00:06:24]} {[%emt 00:07:04]}
Nc6 {[%clk 00:03:05]} {[%emt 00:05:40]} 18. Nxc6 {[%clk 00:03:19]} {[%emt
00:03:11]} Bxc6 {[%clk 00:03:10]} 19. Bxa7 {[%clk 00:02:56]} {[%emt 00:00:28]}
Qa5 {[%clk 00:01:55]} {[%emt 00:01:19]} 20. Bxb8 {[%clk 00:02:21]} {[%emt
00:00:40]} Qb6+ {[%clk 00:01:30]} {[%emt 00:00:30]} 21. Kh1 {[%clk 00:02:15]}
{[%emt 00:00:11]} Ne3 {[%clk 00:01:09]} {[%emt 00:00:26]} 22. Qf3 {[%clk
00:00:26]} {[%emt 00:01:54]} Nxg2 {[%clk 00:01:12]} {[%emt 00:00:02]} 23. Kxg2
{[%clk 00:00:21]} {[%emt 00:00:10]} f5 {[%clk 00:01:11]} {[%emt 00:00:07]} 24.
Ba7 {[%clk 00:00:18]} {[%emt 00:00:07]} Qb7 {[%clk 00:01:06]} {[%emt 00:00:10]}
25. Kg1 {[%clk 00:00:18]} {[%emt 00:00:05]} Qxa7+ {[%clk 00:00:59]} {[%emt
00:00:12]} 26. Qf2 {[%clk 00:00:22]} Bd4 {[%emt 00:00:05]} 0-1



[ePGN "0.1;DGT LiveChess/2.2.6"]